[Event "2nd Bundesliga Nord 2024-25"]
[Site "Germany"]
[Date "2025.02.23"]
[Round "9.3"]
[White "Baklan, Vladimir"]
[Black "Rotstein, Arkadij"]
[Result "1-0"]
[Annotator "TA"]
[ECO "B42"]
[WhiteElo "2553"]
[BlackElo "2432"]
[PlyCount "67"]
[EventDate "2024.11.29"]
[EventType "team-tourn"]
[EventCountry "GER"]
[SourceTitle "playchess.com"]
[Source "ChessBase"]
[SourceQuality "1"]
[TimeControl "40/5400+30:1800+30"]

{[%evp 10,67,38,33,43,10,29,14,12,0,0,0,0,0,28,31,49,32,101,114,118,106,114,125,102,113,210,217,206,214,216,211,223,262,259,248,250,266,331,335,522,450,720,722,700,695,798,762,792,732,706,731,721,721,1524,1418,29962,29962,29984,29985]} 1. e4 {[%emt 0:00:03]} c5 {[%emt 0:00:11]} 2. Nf3 {[%emt 0:00:05]} e6 {[%emt 0:00:07]} 3. d4 {[%emt 0:00:03]} cxd4 {[%emt 0:00:07]} 4. Nxd4 {[%emt 0:00:04]} a6 {[%emt 0:00:09]} 5. Bd3 {[%emt 0:00:16]} Nf6 {[%emt 0:00:42]} 6. Qe2 {[%emt 0:02:26]} d6 {[%emt 0:01:41] B42: Sicilian: Kan Variation: 5 Bd3.} 7. Nc3 {[%emt 0:07:28]} Nbd7 {[%emt 0:02:56] has lost popularity (7...b5).} 8. g4 {[%emt 0:01:04]} g6 $146 {[%emt 0:04:10] The position is equal.} ({Predecessor:} 8... Nc5 9. g5 Nfd7 10. Be3 b5 11. a3 Bb7 12. O-O-O Nxd3+ 13. cxd3 Nb6 14. f4 Rc8 {1-0 Pajcin,L (1960)-Parkajic,B (1886) SRB-ch U14 Kragujevac 2019 (8)}) 9. h4 {[%emt 0:11:02]} h5 {[%emt 0:09:33]} 10. gxh5 {[%emt 0:08:50]} Nxh5 {[%emt 0:01:20]} 11. Bg5 {[%emt 0:00:03] Against Qf6} Be7 {[%emt 0:03:33]} 12. Qd2 {[%emt 0:00:15]} Nc5 {[%emt 0:08:10]} 13. Be2 {[%emt 0:05:58]} b5 {[%emt 0:27:50] [#]} (13... Nf6 $14) 14. b4 $1 $36 {[%emt 0:09:32][%mdl 2048] White is in control. White now steadily converts the win.} Nd7 {[%emt 0:14:26]} 15. Nc6 {[%emt 0:03:22]} Bxg5 {[%emt 0:00:26]} 16. hxg5 {[%emt 0:01:15] A sharp opening} (16. Qxg5 Qf6 17. Qxf6 (17. O-O-O Bb7 $15) 17... Ndxf6 $17) 16... Qc7 {[%emt 0:00:29]} 17. Na5 {[%emt 0:00:10] White is much more active. The black rooks are passive.} Ne5 {[%emt 0:06:25]} (17... Nb6 $16 {was necessary.}) 18. f4 $18 {[%emt 0:18:19]} Nc6 {[%emt 0:01:59]} 19. Nxc6 {[%emt 0:04:52]} Qxc6 {[%emt 0:00:02]} 20. Qd4 {[%emt 0:00:07]} Rh7 {[%emt 0:06:56]} 21. Bxh5 {[%emt 0:09:49]} gxh5 {[%emt 0:00:19] Black is weak on the dark squares} 22. O-O-O {[%emt 0:00:06][%cal Of4f5]} Bb7 {[%emt 0:02:21] [#]} 23. Rh3 $1 {[%emt 0:00:55]} Rc8 {[%emt 0:02:43]} 24. f5 {[%emt 0:02:23][%cal Bf4f5,Bf5g6][%mdl 32]} (24. Qxd6 Qxd6 25. Rxd6 Rc4 $18) 24... e5 {[%emt 0:03:13]} (24... Qc4 $142 25. Qxd6 Qc7 26. fxe6 Qxd6 27. Rxd6 Rc4) 25. Qd2 {[%emt 0:02:26]} Qc7 {[%emt 0:01:48]} (25... Qd7 $142 26. Rd3 (26. Qxd6 Qxd6 27. Rxd6 h4 $18) 26... Rd8) 26. g6 {[%emt 0:03:20]} fxg6 {[%emt 0:00:03]} 27. fxg6 {[%emt 0:00:03]} Rg7 {[%emt 0:00:07]} 28. Rxh5 {[%emt 0:00:14][%cal Bh3h5,Bh5f5,Bf5f7][%mdl 32]} (28. Qxd6 Qxd6 29. Rxd6 Rc6 30. Rxc6 Bxc6 31. Rxh5 Rxg6 32. Rxe5+ Kd7 $16) 28... Kd7 {[%emt 0:01:27] [#]} 29. Rf5 $1 {[%emt 0:04:08] and Qh6 should not be overlooked} Re8 {[%emt 0:00:35]} 30. Nd5 {[%emt 0:03:04]} Bxd5 {[%emt 0:00:05]} 31. Qxd5 {[%emt 0:00:03]} (31. exd5 Rxg6 32. Rf7+ Re7 $18) 31... Re6 {[%emt 0:01:05] Wards off Rf6} 32. Rdf1 {[%emt 0:01:06] Threatening mate with Rf7+.} ({Not} 32. Rxe5 Rgxg6 (32... Rxe5 $2 33. Qxe5 Re7 34. Qd4 $18) 33. Rxe6 Rxe6 $18) 32... Ree7 {[%emt 0:00:39]} 33. Rf7 {[%emt 0:01:25]} Qc4 {[%emt 0:00:43]} 34. Qb7+ {[%emt 0:00:49] Weighted Error Value: White=0.09 (flawless) /Black=0.93  Mistake:       	---       	Black=4      Inaccurate:     	White=1     	Black=1      OK:         	White=10    	Black=5      Best:        	White=1     	---        Strong:       	White=2     	---} 1-0

[Event "2nd Bundesliga Nord 2024-25"]
[Site "Germany"]
[Date "2025.02.23"]
[Round "9.4"]
[White "Suvorov, Alexander"]
[Black "Meins, Gerlef"]
[Result "1/2-1/2"]
[Annotator "TA"]
[ECO "D02"]
[WhiteElo "2356"]
[BlackElo "2374"]
[PlyCount "42"]
[EventDate "2024.11.29"]
[EventType "team-tourn"]
[EventCountry "GER"]
[SourceTitle "playchess.com"]
[Source "ChessBase"]
[SourceQuality "1"]
[TimeControl "40/5400+30:1800+30"]

{[%evp 9,27,-22,-10,-25,-28,-24,-18,-26,-25,-25,-29,-31,-24,-35,-3,-22,0,-7,0,-4]} 1. Nf3 {[%emt 0:00:17]} c5 {[%emt 0:00:32]} 2. c3 {[%emt 0:01:43]} d5 {[%emt 0:02:26]} 3. d4 {[%emt 0:00:29]} Nf6 {[%emt 0:00:53]} 4. dxc5 {[%emt 0:01:05]} e6 {[%emt 0:00:58]} 5. b4 {[%emt 0:00:17]} a5 $1 {[%emt 0:01:17]} 6. e3 {[%emt 0:00:33] D02: 1 d4 d5 2 Nf3 sidelines, including 2...Nf6 3 g3 and 2...Nf6 3 Bf4.} axb4 {[%emt 0:05:32]} 7. cxb4 {[%emt 0:00:59]} b6 $1 {[%emt 0:00:13]} 8. Bb5+ {[%emt 0:00:48]} Bd7 {[%emt 0:00:11]} 9. Bxd7+ {[%emt 0:00:57]} Nbxd7 {[%emt 0:10:44]} 10. a4 {[%emt 0:01:07]} bxc5 {[%emt 0:02:11]} 11. b5 {[%emt 0:00:21]} Bd6 {[%emt 0:03:33][%cal Og7g5]} 12. Bb2 {[%emt 0:01:15] The position is equal.} O-O {[%emt 0:01:27]} 13. O-O {[%emt 0:01:29]} Qc7 {[%emt 0:08:32]} 14. Nbd2 {[%emt 0:05:00] An uneventful encounter.   Weighted Error Value: White=0.08 (flawless) /Black=0.08 (flawless)   Inaccurate:     	---       	Black=1      OK:         	White=4     	Black=2      Best:        	---       	Black=1      Strong:       	---       	Black=1} c4 $146 15. Bc3 e5 16. a5 e4 17. b6 Qb8 18. Nd4 Bxh2+ 19. Kh1 Be5 20. Nc6 Qd6 21. Nxe5 Nxe5 {1-0 Firouzja,A (2749)-So,W (2770) Skilling op Prelim rapid 2020 (2)} 1/2-1/2

[Event "2nd Bundesliga Nord 2024-25"]
[Site "Germany"]
[Date "2025.02.23"]
[Round "9.5"]
[White "Van der Hagen, Loek"]
[Black "Suvorov, Luca"]
[Result "0-1"]
[Annotator "TA"]
[ECO "C55"]
[WhiteElo "2287"]
[BlackElo "2388"]
[PlyCount "108"]
[EventDate "2024.11.29"]
[EventType "team-tourn"]
[EventCountry "GER"]
[SourceTitle "playchess.com"]
[Source "ChessBase"]
[SourceQuality "1"]
[TimeControl "40/5400+30:1800+30"]

{[%evp 9,108,14,39,29,39,19,32,32,39,27,68,53,58,13,66,60,77,77,82,66,71,57,70,72,60,58,56,35,20,26,26,-81,-80,-79,-67,-81,-54,-110,-83,-89,-81,-90,-70,-69,-72,-78,-69,-79,-72,-72,-31,-31,-31,-31,-31,-93,-89,-93,-87,-101,-101,-227,-220,-194,-110,-208,-246,-258,-270,-257,-271,-287,-235,-292,-274,-300,-287,-306,-310,-300,-295,-430,-396,-925,-289,-676,-670,-603,-588,-576,-581,-589,-577,-1056,-1032,-985,-986,-1319,-1410,-1115,-1100]} 1. e4 {[%emt 0:00:03]} e5 {[%emt 0:00:47]} 2. Nf3 {[%emt 0:00:08]} Nc6 {[%emt 0:00:18]} 3. Bc4 {[%emt 0:00:08]} Nf6 {[%emt 0:00:28]} 4. d3 {[%emt 0:00:07]} h6 {[%emt 0:00:26]} 5. c3 {[%emt 0:00:23]} d6 {[%emt 0:01:18]} 6. a4 {[%emt 0:00:09] C55: Two Knights: 4 d3, 4 d4 exd4 5 e5 and Max Lange Attack.} g5 {[%emt 0:05:27]} 7. Qb3 {[%emt 0:00:36]} Qe7 {[%emt 0:07:04]} 8. a5 {[%emt 0:00:28] White is slightly better.} a6 {[%emt 0:06:44]} 9. O-O {[%emt 0:02:44]} Nd7 $146 {[%emt 0:08:16]} (9... Bg7 10. Re1 Rb8 11. Qd1 g4 12. Nfd2 h5 13. Nf1 Be6 14. Ne3 Nh7 15. Nd2 Qf6 {0-1 Gomez Barrera,J (2174)-Lopez Rayo,I (1974) American Continental (Women) 15th 2024 (6)}) 10. Be3 $1 {[%emt 0:10:10]} Bg7 {[%emt 0:04:15]} 11. h3 {[%emt 0:04:20]} O-O {[%emt 0:07:16]} (11... Nf6 $11) 12. Re1 {[%emt 0:06:12]} Nd8 {[%emt 0:24:29][%cal Bc6d8,Bd8e6,Be6f4][%mdl 32]} 13. Nbd2 {[%emt 0:07:06]} Ne6 {[%emt 0:01:17]} 14. Nf1 {[%emt 0:02:39]} Nf4 {[%emt 0:04:20]} 15. d4 {[%emt 0:08:25]} Qf6 {[%emt 0:02:17][%cal Of4h3]} 16. Qd1 {[%emt 0:17:05]} Re8 {[%emt 0:06:47]} 17. Ng3 {[%emt 0:10:21]} Nf8 {[%emt 0:00:39]} 18. Bxf4 {[%emt 0:05:04]} gxf4 {[%emt 0:02:21]} 19. Nh5 {[%emt 0:01:19]} Qg6 {[%emt 0:01:43][%csl LRh3,LRh5]} 20. Nxg7 {[%emt 0:00:06]} (20. Nh4 $11 {was the only way to keep the balance.} Qg5 21. Nxg7 Kxg7 22. Nf3) 20... Bxh3 $1 $17 {[%emt 0:04:58][%csl Gh3][%cal Rg6g2]} 21. Nh4 {[%emt 0:10:19]} Qxg7 {[%emt 0:00:25]} 22. Kf1 {[%emt 0:04:49]} Qg5 {[%emt 0:05:18]} 23. Qd3 {[%emt 0:04:53]} ({White should try} 23. gxh3 $15 Qxh4 24. Qg4+ Qxg4 25. hxg4) 23... Qxh4 {[%emt 0:00:55]} 24. Qxh3 {[%emt 0:00:52]} Qxh3 {[%emt 0:02:51]} 25. gxh3 {[%emt 0:00:05]} Ng6 {[%emt 0:01:32]} 26. f3 {[%emt 0:00:16]} Kg7 {[%emt 0:00:25]} 27. Kf2 {[%emt 0:00:18]} Kf6 {[%emt 0:00:15]} 28. Rg1 {[%emt 0:02:36]} Rg8 {[%emt 0:00:55]} 29. Ra3 {[%emt 0:00:47]} Ne7 {[%emt 0:00:36]} 30. Rxg8 {[%emt 0:01:03]} Nxg8 $15 {[%emt 0:00:07][%mdl 4096] Endgame KRB-KRN. Black is a pawn up.} 31. Rb3 {[%emt 0:00:51]} Ra7 {[%emt 0:00:08]} 32. Kg2 {[%emt 0:00:49]} (32. Bd5 $15 c6 33. Bc4) 32... Ne7 $17 {[%emt 0:00:32]} 33. d5 {[%emt 0:01:05]} Ng6 {[%emt 0:00:46]} 34. Bd3 {[%emt 0:00:32]} Nf8 {[%emt 0:00:18]} 35. Rb4 {[%emt 0:00:33] [#]} (35. Ra3 $17) 35... Nd7 $1 $19 {[%emt 0:01:02]} 36. Bc2 {[%emt 0:00:30]} Ke7 {[%emt 0:00:37]} (36... Nc5 $19 37. h4 Ra8) 37. Rc4 {[%emt 0:01:09] [#]} (37. Ra4 $17) 37... b5 $1 {[%emt 0:00:29]} 38. axb6 {[%emt 0:00:00]} Nxb6 {[%emt 0:00:16]} (38... cxb6 39. Rc8 $17) 39. Rc6 {[%emt 0:00:12]} a5 {[%emt 0:00:19]} 40. h4 {[%emt 0:00:42]} h5 {[%emt 0:00:54]} 41. Kf2 {[%emt 0:02:26]} a4 {[%emt 0:05:40]} 42. Ke2 {[%emt 0:01:12]} Kd8 {[%emt 0:02:01]} 43. Kd2 {[%emt 0:03:05]} a3 {[%emt 0:02:43]} 44. bxa3 {[%emt 0:00:17]} Rxa3 {[%emt 0:00:16]} 45. Kc1 {[%emt 0:00:23]} (45. Bd3 {might work better.}) 45... Ra1+ {[%emt 0:11:54]} 46. Bb1 $2 {[%emt 0:00:07]} (46. Kd2) 46... Ra5 $2 {[%emt 0:04:58]} (46... f5 {...fxe4 would now be deadly.} 47. Kb2 Rxb1+ 48. Kxb1 fxe4) 47. Kb2 $2 {[%emt 0:03:45]} (47. Kd2) 47... Na4+ {[%emt 0:00:35] Black is clearly winning.} 48. Kc1 {[%emt 0:02:15]} Nc5 {[%emt 0:00:26]} 49. Kb2 {[%emt 0:01:19]} Kc8 {[%emt 0:01:21]} 50. Bc2 {[%emt 0:00:21]} Kb7 {[%emt 0:00:10]} 51. Bd1 {[%emt 0:00:44]} Ra8 {[%emt 0:00:48]} 52. Be2 {[%emt 0:00:31]} Rg8 {[%emt 0:00:36] ( -> ...Rg2)} 53. Ka3 {[%emt 0:00:30]} Rg2 {[%emt 0:01:15]} 54. Bb5 {[%emt 0:00:12]} Rf2 {[%emt 0:00:40] Weighted Error Value: White=0.46/Black=0.17 (very precise)   Mistake:       	White=8     	Black=3      Inaccurate:     	White=2     	Black=3      OK:         	White=12    	Black=16     Best:        	White=1     	Black=1      Strong:       	White=1     	Black=3} 0-1

[Event "2nd Bundesliga Nord 2024-25"]
[Site "Germany"]
[Date "2025.02.23"]
[Round "9.6"]
[White "Korotkjevich, Stanislav"]
[Black "Lobzhanidze, Davit"]
[Result "0-1"]
[Annotator "TA"]
[ECO "E12"]
[WhiteElo "2360"]
[BlackElo "2394"]
[PlyCount "184"]
[EventDate "2024.11.29"]
[EventType "team-tourn"]
[EventCountry "GER"]
[SourceTitle "playchess.com"]
[Source "ChessBase"]
[SourceQuality "1"]
[TimeControl "40/5400+30:1800+30"]

{[%evp 25,184,0,16,19,24,0,41,16,29,16,22,16,27,8,24,-46,-40,-37,-41,-37,-51,-63,-69,-66,-62,-103,-105,-105,-85,-114,-58,-58,-58,-58,-58,-58,-47,-60,-64,-58,-58,-100,-97,-97,-97,-97,-97,-110,-56,-56,-57,-97,-97,-89,-89,-97,-89,-96,-96,-96,-96,-96,-96,-170,-96,-174,-96,-105,-96,-96,-96,-96,-95,-74,-50,-96,-97,-103,-102,-102,-96,-102,-96,-96,0,-103,-103,-107,-93,-111,-128,-174,-169,-204,-177,-177,-177,-177,-175,-170,-170,-170,-124,-327,-124,-314,-170,-164,-124,-124,-124,-124,-124,-170,-169,-169,-154,-144,-154,-162,-169,-169,-84,-169,-169,-162,-154,-175,-161,-179,-163,-156,-137,-130,0,-157,-160,-175,-95,-259,-257,-247,-213,-351,-307,-285,-220,-29975,-29977,-29977,-29978,-29978,-29979,-29979,-29978,-29978,-29979,-29979,-29980,-29980,-29981]} 1. d4 {[%emt 0:00:03]} Nf6 {[%emt 0:00:24]} 2. Nf3 {[%emt 0:00:08]} e6 {[%emt 0:01:06]} 3. c4 {[%emt 0:00:05]} b6 {[%emt 0:01:49]} 4. a3 {[%emt 0:00:38]} Bb7 {[%emt 0:01:52]} 5. Nc3 {[%emt 0:00:19]} d5 {[%emt 0:00:45]} 6. cxd5 {[%emt 0:00:48]} Nxd5 {[%emt 0:00:09]} 7. Qc2 {[%emt 0:00:30]} Be7 {[%emt 0:08:44]} 8. e4 {[%emt 0:00:50]} Nxc3 {[%emt 0:00:11]} 9. bxc3 {[%emt 0:00:07]} Nd7 {[%emt 0:07:24]} 10. Bd3 {[%emt 0:06:43]} c5 {[%emt 0:01:57]} 11. O-O {[%emt 0:01:51]} Qc7 {[%emt 0:04:19]} 12. Qe2 {[%emt 0:03:37]} O-O {[%emt 0:00:39]} 13. Bb2 {[%emt 0:03:54]} Rac8 {[%emt 0:09:09]} 14. Nd2 {[%emt 0:06:28] has lost popularity (14.Rad1). E12: Queen's Indian: Unusual White 4th moves, 4 a3, 4 Nc3 Bb7 5 a3 and 4 Nc3 Bb7 .} Bg5 {[%emt 0:14:02]} 15. Rad1 {[%emt 0:08:14]} e5 {[%emt 0:06:42]} 16. Nf3 {[%emt 0:05:10] White is slightly better.} Bf6 {[%emt 0:01:24]} 17. Bb5 {[%emt 0:03:54]} cxd4 {[%emt 0:12:46]} 18. cxd4 {[%emt 0:00:10]} exd4 {[%emt 0:00:23]} 19. Bxd4 $146 {[%emt 0:01:29]} (19. Nxd4 Nc5 20. Nf5 Bxb2 21. Qxb2 f6 22. Nd6 Rb8 23. f3 Kh8 24. Rf2 Ba6 25. Bxa6 Nxa6 {1-0 Pert,N (2539)-Dinger,F (2378) Hastings Masters op 83rd 2007 (3)}) 19... Bxd4 {[%emt 0:02:07]} 20. Rxd4 {[%emt 0:00:13]} (20. Bxd7 $11 Rcd8 (20... Qxd7 21. Nxd4 Qa4 22. Nf5 $11) 21. Nxd4 Rxd7 22. Nb5) 20... Nc5 $15 {[%emt 0:00:59]} 21. Rfd1 {[%emt 0:05:00]} Rcd8 {[%emt 0:03:17]} 22. Rxd8 {[%emt 0:15:01]} Rxd8 {[%emt 0:00:06]} 23. e5 {[%emt 0:01:48]} Rxd1+ {[%emt 0:02:09]} 24. Qxd1 {[%emt 0:00:05]} Ne6 {[%emt 0:00:51]} 25. a4 {[%emt 0:07:59]} g6 {[%emt 0:04:25]} 26. h4 {[%emt 0:04:23]} Kg7 {[%emt 0:04:07]} 27. h5 {[%emt 0:02:52]} gxh5 {[%emt 0:00:06]} (27... Qc3 $17 28. hxg6 hxg6) 28. Nd4 $1 {[%emt 0:02:46]} Qxe5 {[%emt 0:02:48]} 29. Nxe6+ {[%emt 0:00:11]} Qxe6 {[%emt 0:00:11]} 30. Qxh5 {[%emt 0:00:09][%mdl 4096] Endgame KQB-KQB. Black is a pawn up.} h6 {[%emt 0:01:20] Prevents Qg5+.} 31. Qh4 {[%emt 0:00:52]} Qe1+ {[%emt 0:01:40]} 32. Kh2 $1 {[%emt 0:01:00]} Qe5+ {[%emt 0:00:07]} 33. f4 {[%emt 0:02:09]} Qf6 {[%emt 0:01:17] Active counter play!} 34. Qg3+ {[%emt 0:00:05]} Qg6 {[%emt 0:02:15]} 35. Qc3+ {[%emt 0:00:08]} Kg8 {[%emt 0:00:33][%csl Gb7][%cal Rg6g2]} 36. Bf1 {[%emt 0:01:43]} Qe4 {[%emt 0:04:20]} (36... Bc6 $17 37. a5 Qd6 38. Qg3+ Kf8 39. axb6 axb6) 37. Qg3+ $1 {[%emt 0:03:28]} Kf8 {[%emt 0:00:16]} 38. Qh4 {[%emt 0:00:44]} Kg7 {[%emt 0:00:19]} (38... Qxa4 $6 39. Qxh6+ Ke8 40. Qf6 $11) 39. Qg3+ {[%emt 0:00:09]} Qg6 $1 {[%emt 0:00:36]} 40. Qc3+ {[%emt 0:00:13]} Qf6 {[%emt 0:00:18]} 41. Qg3+ {[%emt 0:30:51]} Kf8 {[%emt 0:30:29]} 42. Qa3+ {[%emt 0:00:40]} Qe7 {[%emt 0:00:39]} 43. Qh3 {[%emt 0:01:34]} Qd6 {[%emt 0:00:00]} 44. Qf5 {[%emt 0:00:00]} (44. Qe3 $17) 44... Qe6 {[%emt 0:00:00]} (44... Qd4 $19 45. Bd3 a6 (45... Qxa4 46. Qf6 $17)) 45. Qc2 {[%emt 0:00:00]} (45. Qd3 $17) 45... Qc6 {[%emt 0:00:00]} (45... Qe1 $19 46. Qc4 Qf2) 46. Qd2 {[%emt 0:00:00]} Qd5 {[%emt 0:00:00]} (46... Qxa4 $6 47. Qd6+ Kg7 48. Qe5+ Kg8 49. Qb8+ Kg7 50. Qe5+ (50. Qxb7 Qxf4+ 51. Kg1 Qd4+ 52. Kh1 Qh4+ 53. Kg1 Qd4+ 54. Kh1 Qh4+ 55. Kg1 Qd4+ $11) 50... Kf8 51. Qh8+ (51. Qb8+ Kg7 $11) 51... Ke7 52. Qe5+ Kf8 53. Qh8+ Ke7 54. Qe5+ Kd8 55. Bb5 $11) 47. Qc3 {[%emt 0:00:00]} Qd6 {[%emt 0:00:00]} 48. Qe3 {[%emt 0:00:00]} Qc5 {[%emt 0:00:00]} 49. Qh3 {[%emt 0:00:00]} Qc6 {[%emt 0:00:00][%cal Of8e7]} 50. Qh4 {[%emt 0:00:00]} (50. Qa3+ $15 {is superior.} Kg7 51. Qa1+ f6 52. Qd1) 50... Qd6 $17 {[%emt 0:00:16]} (50... Qxa4 $6 51. Qxh6+ Ke8 52. Qd6 $11) 51. Qg4 {[%emt 0:00:00]} Bc6 {[%emt 0:01:02]} 52. Bb5 {[%emt 0:00:00]} Bd5 {[%emt 0:01:16]} 53. Qh4 {[%emt 0:00:00]} Kg7 {[%emt 0:00:48]} 54. Bd3 {[%emt 0:00:00]} Bb7 {[%emt 0:00:32]} ({Black should play} 54... Kg8 $17 55. Bb5 Be4 56. Qg3+ Qg6) 55. Qg3+ {[%emt 0:00:00]} (55. Qg4+ $1 $11 {remains equal.} Kf8 56. Bc2) 55... Kf8 {[%emt 0:00:05]} 56. Bf1 {[%emt 0:00:00]} a6 {[%emt 0:00:08]} 57. Qh4 {[%emt 0:00:00]} Bc6 {[%emt 0:01:03]} 58. Kh1 {[%emt 0:00:00]} (58. Bxa6 $17 Bxa4 59. Bf1) 58... Bxa4 {[%emt 0:01:42]} 59. f5 {[%emt 0:00:00]} Bb5 {[%emt 0:01:01]} 60. Bxb5 {[%emt 0:00:00]} axb5 $19 {[%emt 0:00:01] KQ-KQ. Black is two pawns up.} 61. f6 {[%emt 0:00:00]} Ke8 {[%emt 0:00:42]} 62. Qxh6 {[%emt 0:00:00]} b4 {[%emt 0:00:54]} 63. Qg5 {[%emt 0:00:00]} Kd7 {[%emt 0:00:22]} (63... Qd1+ $19 64. Kh2 Kd7 (64... Qd6+ 65. g3 $15) 65. Qb5+ Ke6 66. Qe8+ Kxf6 67. Qh8+ Kf5 68. Qh7+ Ke5 69. Qxf7 Qg4) 64. Qf5+ $2 {[%emt 0:00:14]} (64. Qg4+ $17 {was the only chance.} Qe6 65. Qxb4) 64... Qe6 $2 {[%emt 0:01:02]} ({Less strong is} 64... Kc6 65. Qc8+ Qc7 66. Qa8+ Kd6 67. Qe4 $15) (64... Kc7 $19 {has better winning chances. White must now prevent ...Qd4.} 65. Qc2+ Qc6) 65. Qf3 $2 {[%emt 0:00:52]} (65. Qb5+ $17 Kc7 66. Qxb4) 65... Kc7 {[%emt 0:00:29]} (65... Kd6 $142 66. Qb7 Qe1+ (66... Qxf6 67. Qxb6+ Ke5 68. Qc5+ Ke6 69. Qxb4 $11) 67. Kh2 Qe5+ 68. Kh3 Qe6+ (68... Qxf6 69. Qxb6+ Ke5 70. Qb5+ Ke6 71. Qxb4 $11) 69. g4 Ke5 (69... Qxf6 70. Qxb6+ Ke5 71. Qxb4 $11) 70. Qc7+ Kd5 (70... Kxf6 71. Qf4+ Kg6 72. Qxb4 $11) 71. Qb7+ Kd4) 66. Qf4+ {[%emt 0:00:19]} Kb7 {[%emt 0:00:09]} 67. Qxb4 {[%emt 0:02:03] Hoping for Qe7+.} Qxf6 {[%emt 0:00:04]} 68. Qe4+ {[%emt 0:00:03]} Kc7 {[%emt 0:00:17]} 69. Qd5 {[%emt 0:00:10]} (69. Qc4+ $17 {was necessary.} Kb8 70. Qe4) 69... Qh6+ {[%emt 0:01:11]} 70. Kg1 {[%emt 0:00:07]} Qc1+ {[%emt 0:00:08]} 71. Kh2 {[%emt 0:00:14] [#]} Qf4+ $1 {[%emt 0:00:12]} 72. Kh1 {[%emt 0:00:23]} Qh4+ {[%emt 0:00:11]} 73. Kg1 {[%emt 0:23:34]} Qe1+ {[%emt 0:00:01]} 74. Kh2 {[%emt 0:00:00]} Qe6 {[%emt 0:00:09]} 75. Qb5 {[%emt 0:00:00]} Qd6+ {[%emt 0:00:50]} 76. g3 {[%emt 0:00:00]} Qd2+ {[%emt 0:01:32]} 77. Kg1 {[%emt 0:00:00]} Qc1+ {[%emt 0:00:54]} 78. Kh2 {[%emt 0:00:00]} Qh6+ {[%emt 0:00:15]} 79. Kg1 {[%emt 0:00:00]} Qc1+ {[%emt 0:00:48]} 80. Kh2 {[%emt 0:00:00]} Qc5 {[%emt 0:00:05]} 81. Qe8 {[%emt 0:00:00]} Qd5 {[%emt 0:00:24]} (81... Qf2+ $19 82. Kh1 Qf1+ (82... Qxg3 83. Qc8+ Kxc8 $11) 83. Kh2 b5) 82. Kg1 $2 {[%emt 0:00:00] [#]} (82. Qe7+ $17 Qd7 83. Qe2) 82... b5 $1 {[%emt 0:00:47]} 83. Kf2 {[%emt 0:00:00]} Qd4+ {[%emt 0:00:56]} 84. Ke2 {[%emt 0:00:00]} (84. Kg2 $142 Qd2+ 85. Kg1) 84... Qc4+ {[%emt 0:00:17]} 85. Kd2 {[%emt 0:00:00]} Qd5+ {[%emt 0:01:01]} 86. Ke3 $2 {[%emt 0:00:00]} (86. Kc1 $19) 86... Qe6+ {[%emt 0:01:19] Black mates.} 87. Qxe6 {[%emt 0:00:00]} fxe6 {[%emt 0:00:02] KPP-KP. Black is a pawn up.} 88. Ke4 {[%emt 0:00:00]} Kd6 {[%emt 0:00:13]} 89. g4 {[%emt 0:00:00]} b4 {[%emt 0:00:38]} 90. Kd4 {[%emt 0:00:00]} Ke7 {[%emt 0:00:12]} 91. Kc4 {[%emt 0:00:00]} Kf6 {[%emt 0:00:05]} 92. Kxb4 {[%emt 0:00:00]} Kg5 {[%emt 0:00:04] Weighted Error Value: White=0.18 (very precise) /Black=0.14 (very precise)   Loses game:     	White=3     	---        Missed win:     	---       	Black=1      Mistake:       	White=9     	Black=8      Inaccurate:     	White=5     	Black=1      OK:         	White=19    	Black=25     Best:        	White=9     	Black=4      Strong:       	White=3     	Black=3} 0-1